bitfinex-derivatives/quotes_SOLF0:USTF0_20250114
["timestamp","ask_amount","ask_price","bid_price","bid_amount"]
[1736839547942,8.01065541,185.97,185.93,2.6903]
[1736839548131,10.70045541,185.97,185.93,2.6903]
[1736839567056,10.70085541,185.95,185.91,2.6906]
[1736839568157,8.01065541,185.93,185.92,2.6905]
[1736839568358,8.01065541,185.93,185.87,8.01065541]
[1736839570055,8.01065541,185.93,185.91,2.6905]
[1736839572359,8.01065541,185.93,185.9,2.6907]
[1736839574563,8.01065541,185.93,185.91,2.6906]
[1736839576163,2.6905,185.92,185.9,2.6907]
[1736839576462,8.01065541,185.91,185.9,2.6907]
[1736839577166,8.01065541,185.91,185.85,44.67806941]
[1736839577366,8.01065541,185.89,185.88,2.691]
[1736839577665,2.6907,185.91,185.88,2.691]
[1736839577855,10.70135541,185.91,185.88,2.691]
[1736839583671,8.01065541,185.91,185.89,2.6909]
[1736839583868,8.01065541,185.95,185.88,8.01065541]
[1736839584971,2.6903,185.94,185.91,2.6906]
[1736839585674,10.70105541,185.93,185.91,2.6906]
[1736839586075,8.01065541,185.93,185.83,1.5544]
[1736839586275,8.01065541,185.91,185.85,8.01065541]
[1736839586477,10.70135541,185.91,185.85,8.01065541]
[1736839587178,10.70135541,185.91,185.88,2.691]
[1736839588583,8.01065541,185.89,185.8,29.87830693]
[1736839588776,8.01065541,185.89,185.83,8.01065541]
[1736839589082,10.70195541,185.87,185.83,2.6917]
[1736839590077,10.70195541,185.87,185.84,2.6916]
[1736839590978,10.70195541,185.87,185.78,100.68]
[1736839591184,2.6915,185.86,185.8,8.01065541]
[1736839591784,2.6915,185.86,185.82,2.6918]
[1736839591984,2.6915,185.86,185.8,8.01065541]
[1736839592183,8.01065541,185.87,185.8,8.01065541]
[1736839592386,10.70195541,185.87,185.83,2.6918]
[1736839594685,2.6913,185.87,185.84,2.6916]
[1736839596787,9.60525541,185.88,185.84,2.6916]
[1736839596987,2.6914,185.86,185.84,2.6916]
[1736839601693,10.70205541,185.86,185.84,2.6916]
[1736839602795,10.70205541,185.86,185.83,2.6917]
[1736839603992,2.6914,185.86,185.83,2.6917]
[1736839616003,2.6911,185.88,185.85,10.70205541]
[1736839616801,2.6911,185.88,185.86,2.6914]
[1736839617499,10.70175541,185.88,185.86,2.6914]
[1736839617802,10.70175541,185.88,185.83,8.01065541]
[1736839618003,10.70175541,185.88,185.85,2.6914]
[1736839620400,8.01065541,185.88,185.85,2.6914]
[1736839620599,10.70215541,185.86,185.83,2.6918]
[1736839624208,2.6915,185.85,185.82,2.6919]
[1736839624413,8.01065541,185.86,185.79,8.01065541]
[1736839624710,2.6917,185.84,185.8,2.6922]
[1736839626306,2.6917,185.84,185.79,8.01065541]
[1736839626606,2.6917,185.84,185.81,2.6921]
[1736839631714,10.70235541,185.84,185.81,2.6921]
[1736839635815,8.01065541,185.84,185.81,2.6921]
[1736839640520,8.01065541,185.84,185.82,2.6919]
[1736839644019,10.70235541,185.84,185.81,2.692]
[1736839647124,10.70255541,185.82,185.78,2.6924]
[1736839647325,8.01065541,185.82,185.74,29.87830693]
[1736839647518,2.6922,185.81,185.75,8.01065541]
[1736839647717,2.6922,185.81,185.77,2.6926]
[1736839648323,2.6922,185.81,185.78,2.6925]
[1736839648923,8.01065541,185.82,185.77,8.01065541]
[1736839649219,8.01065541,185.84,185.77,8.01065541]
[1736839649524,10.70235541,185.84,185.8,2.6921]
[1736839651025,10.70235541,185.84,185.81,2.6921]
[1736839654932,10.70235541,185.84,185.82,2.6919]
[1736839657136,2.6911,185.88,185.85,2.6915]
[1736839657438,1.641,185.89,185.86,8.01065541]
[1736839659132,1.641,185.89,185.87,2.6911]
[1736839664038,2.6908,185.9,185.87,2.6911]
[1736839665541,2.6908,185.9,185.79,1.5952]
[1736839665542,2.6906,185.92,185.89,2.6909]
[1736839665842,8.01065541,185.91,185.89,2.6909]
[1736839667832,8.01065541,185.91,185.8,0.6737]
[1736839667833,8.01065541,185.93,185.88,8.01065541]
[1736839668036,1.5674,185.94,185.88,8.01065541]
[1736839668565,1.5674,185.94,185.92,2.6905]
[1736839669553,1.5674,185.94,185.9,8.01065541]
[1736839669750,1.6097,185.99,185.92,8.01065541]
[1736839669961,9.62035541,185.99,185.92,8.01065541]
[1736839671940,9.62035541,185.99,185.95,2.6899]
[1736839672834,12.30985541,185.99,185.95,2.6899]
[1736839673742,9.62035541,185.99,185.96,2.6899]
[1736839673942,1.6499,186.03,185.94,8.01065541]
[1736839674137,9.66055541,186.03,185.96,8.01065541]
[1736839674738,9.66055541,186.03,185.99,2.6893]
[1736839677146,12.34945541,186.03,185.99,2.6893]
[1736839677345,8.01065541,186.01,185.98,2.6896]
[1736839679437,8.01065541,185.99,185.94,8.01065541]
[1736839680446,8.01065541,185.99,185.93,8.01065541]
[1736839680740,2.6894,186.0,185.96,2.6898]
[1736839680946,8.01065541,186.0,185.93,8.01065541]
[1736839681847,8.01065541,186.0,185.97,2.6898]
[1736839682840,10.70005541,186.0,185.95,2.69]
[1736839683040,10.70005541,186.0,185.93,8.01065541]
[1736839683247,2.6894,186.0,185.93,8.01065541]
[1736839683450,8.01065541,185.99,185.95,2.69]
[1736839684350,8.01065541,185.99,185.93,8.01065541]
[1736839684847,8.01065541,185.99,185.96,2.6899]
[1736839687647,8.01065541,185.97,185.94,2.6902]
[1736839688850,8.01065541,185.97,185.87,6.9383]
[1736839688851,8.01065541,185.97,185.95,2.6899]
[1736839689049,12.38315541,185.99,185.95,2.6899]
[1736839690146,2.6898,185.97,185.94,2.6902]
[1736839690647,2.6898,185.97,185.93,2.6903]
[1736839690648,10.70045541,185.97,185.93,2.6903]
[1736839708462,10.70045541,185.97,185.94,2.6902]
[1736839732580,8.01065541,185.97,185.94,2.6902]
[1736839732787,8.01065541,185.97,185.92,8.01065541]
[1736839733682,8.01065541,185.97,185.93,2.6903]
[1736839733884,8.01065541,185.97,185.92,8.01065541]
[1736839734685,8.01065541,185.97,185.95,2.6899]
[1736839743994,8.01065541,185.97,185.92,8.01065541]
[1736839744890,8.01065541,185.97,185.87,9.00787673]
[1736839744891,1.6499,186.03,185.94,8.01065541]
[1736839745097,8.01065541,186.01,185.94,8.01065541]
[1736839745498,10.69985541,186.01,185.97,2.6896]
[1736839746200,2.6894,186.0,185.97,2.6896]
[1736839747504,8.01065541,185.99,185.97,2.6896]
[1736839748604,10.70015541,185.99,185.97,2.6896]
[1736839749201,10.70015541,185.99,185.93,8.01065541]
[1736839749402,10.70015541,185.99,185.96,2.6899]
[1736839750099,8.01065541,185.97,185.9,8.01065541]
[1736839751004,2.69,185.96,185.92,2.6904]
[1736839752705,8.01065541,185.95,185.92,2.6904]
[1736839753205,8.01065541,185.95,185.93,2.6903]
[1736839763311,8.01065541,185.95,185.9,8.01065541]
[1736839763613,1.6499,186.03,185.92,8.01065541]
[1736839763815,8.01065541,185.97,185.92,8.01065541]
[1736839764007,8.01065541,185.97,185.96,2.6899]
[1736839770722,10.70055541,185.97,185.94,2.6901]
[1736839776021,10.70055541,185.97,185.93,2.6903]
[1736839777324,2.6899,185.96,185.93,2.6903]
[1736839777523,8.01065541,185.95,185.93,2.6903]
[1736839780923,2.6899,185.96,185.93,2.6903]
[1736839788538,1.6499,186.03,185.92,8.01065541]
[1736839788734,8.01065541,186.02,185.94,8.01065541]
[1736839789036,2.6894,186.0,185.96,2.6898]
[1736839790846,2.6894,186.0,185.97,2.6897]
[1736839792245,10.70005541,186.0,185.97,2.6897]
[1736839792548,1.6499,186.03,185.98,8.01065541]
[1736839792844,1.6429,186.05,186.0,8.01065541]
[1736839793853,9.65355541,186.05,186.0,8.01065541]
[1736839794144,4.3315,186.05,186.02,2.6889]
[1736839795042,4.3315,186.05,186.0,8.01065541]
[1736839795043,1.6429,186.05,186.03,2.6888]
[1736839797352,2.6885,186.06,186.03,2.6888]
[1736839798048,10.69905541,186.07,186.04,2.6887]
[1736839803756,2.6885,186.06,186.04,2.6887]
[1736839804157,8.01065541,186.05,186.04,2.6887]
[1736839804559,8.01065541,186.05,185.95,1.6263]
[1736839804759,8.01065541,186.03,185.98,8.01065541]
[1736839806057,8.01065541,186.03,186.0,2.6892]
[1736839809359,8.01065541,186.03,185.93,5.4]
[1736839809564,8.01065541,186.01,185.96,8.01065541]
[1736839810064,2.6894,186.0,185.95,2.69]
[1736839810261,8.01065541,185.99,185.94,8.01065541]
[1736839810565,8.01065541,185.99,185.92,8.01065541]
[1736839810765,10.70015541,185.99,185.95,2.69]
[1736839810966,8.01065541,185.99,185.95,2.69]
[1736839811168,8.01065541,185.99,185.92,8.01065541]
[1736839811364,8.01065541,185.99,185.95,2.69]
[1736839811365,10.70015541,185.99,185.95,2.69]
[1736839811966,10.70015541,185.99,185.96,2.6899]
[1736839812371,8.01065541,185.99,185.96,2.6899]
[1736839812559,2.6893,186.0,185.96,2.6899]
[1736839812760,8.01065541,186.01,185.97,2.6898]
[1736839813369,10.69985541,186.01,185.97,2.6898]
[1736839814260,2.6893,186.0,185.97,2.6898]
[1736839815266,8.01065541,186.03,185.98,2.6896]
[1736839815570,8.01065541,186.03,185.98,10.70025541]
[1736839815966,1.5906,186.04,185.98,8.01065541]
[1736839816163,1.5906,186.04,186.0,8.01065541]
[1736839817173,2.6888,186.04,186.01,2.6891]
[1736839818071,8.01065541,186.07,186.0,8.01065541]
[1736839818271,2.6886,186.06,186.02,2.6889]
[1736839818972,2.6886,186.05,186.02,2.6889]
[1736839820865,2.6885,186.06,186.02,2.6889]
[1736839822472,2.6885,186.06,186.0,8.01065541]
[1736839822675,154.07349746,186.19,186.04,8.01065541]
[1736839822873,3.1593,186.17,186.06,8.01065541]
[1736839823174,10.69825541,186.12,186.09,2.688]
[1736839823482,2.6876,186.12,186.09,2.688]
[1736839823774,10.69825541,186.12,186.09,2.688]
[1736839824677,10.69825541,186.12,186.08,2.6881]
[1736839825367,2.6878,186.11,186.08,2.6881]
[1736839827176,10.69865541,186.1,186.06,2.6884]
[1736839827371,8.01065541,186.1,186.06,2.6884]
[1736839828177,8.01065541,186.08,186.02,8.01065541]
[1736839828382,8.01065541,186.06,186.0,8.01065541]
[1736839828781,10.69925541,186.06,186.02,2.6889]
[1736839829081,8.01065541,186.06,186.02,2.6889]
[1736839830082,2.6886,186.05,186.02,2.6889]
[1736839831391,10.69915541,186.06,186.02,2.6889]
[1736839832092,2.6885,186.06,186.02,2.6889]
[1736839832386,2.6885,186.06,186.03,2.6889]
[1736839833688,2.6885,186.06,186.0,8.01065541]
[1736839833883,2.6885,186.06,186.02,2.689]
[1736839838091,2.6885,186.06,186.03,2.6889]
[1736839838291,1.6469,186.09,186.03,8.01065541]
[1736839838488,1.6469,186.09,185.97,157.80159991]
[1736839838689,1.6469,186.09,186.05,8.01065541]
[1736839839595,1.6469,186.09,185.97,157.80159991]
[1736839839596,9.65755541,186.09,186.03,8.01065541]
[1736839839792,8.01065541,186.07,186.01,8.01065541]
[1736839841089,2.6886,186.05,186.02,2.689]
[1736839841897,8.01065541,186.07,186.01,8.01065541]
[1736839842098,2.6888,186.04,186.01,2.6892]
[1736839842998,10.69925541,186.05,186.02,2.689]
[1736839843401,8.01065541,186.05,186.01,8.01065541]
[1736839844093,12.38225541,186.07,186.03,2.6888]
[1736839847608,1.6832,186.07,186.03,8.01065541]
[1736839847901,1.6832,186.07,186.05,2.6886]
[1736839853824,1.6541,186.14,186.05,8.01065541]
[1736839854122,8.01065541,186.11,186.02,5.4]
[1736839854322,8.01065541,186.11,186.05,8.01065541]
[1736839855426,2.6881,186.09,186.06,2.6884]
[1736839856210,10.69875541,186.09,186.06,2.6884]
[1736839858309,8.01065541,186.09,186.06,2.6884]
[1736839858906,10.69865541,186.09,186.06,2.6884]
[1736839859911,8.01065541,186.09,186.06,2.6884]
[1736839860611,8.01065541,186.09,186.03,8.01065541]
[1736839860811,5.013,186.14,186.03,8.01065541]
[1736839860812,8.01065541,186.11,186.03,8.01065541]
[1736839861114,8.01065541,186.11,186.05,8.01065541]
[1736839861506,8.01065541,186.11,186.08,2.6881]
[1736839862306,8.01065541,186.11,186.05,8.01065541]
[1736839862511,6.0462,186.14,186.1,2.6878]
[1736839862912,6.0462,186.14,186.07,8.01065541]
[1736839863109,8.01065541,186.18,186.11,8.01065541]
[1736839864114,10.69745541,186.18,186.13,2.6874]
[1736839865327,4.3706,186.19,186.15,2.687]
[1736839865515,8.01065541,186.18,186.15,2.687]
[1736839874221,8.01065541,186.18,186.09,5.4]
[1736839874425,8.01065541,186.15,186.1,8.01065541]
[1736839875121,8.01065541,186.15,186.12,2.6875]
[1736839881730,10.69785541,186.15,186.11,2.6877]
[1736839881926,8.01065541,186.15,186.1,8.01065541]
[1736839882833,2.6873,186.14,186.11,2.6877]
[1736839884129,5.8295,186.14,186.11,2.6877]
[1736839885925,8.01065541,186.13,186.06,3.44487051]
[1736839886133,10.69845541,186.11,186.07,2.6883]
[1736839891334,10.69845541,186.11,186.06,3.44487051]
[1736839891537,10.69845541,186.11,186.08,2.6882]
[1736839896436,2.688,186.1,186.06,6.13327051]
[1736839896735,8.01065541,186.09,186.06,3.44487051]
[1736839897333,10.69875541,186.09,186.06,3.44487051]
[1736839897830,8.01065541,186.09,185.98,1.5508]
[1736839898025,2.6886,186.05,186.01,2.6891]
[1736839898230,2.6886,186.05,186.0,8.01065541]
[1736839899132,2.6885,186.06,186.02,2.6889]
[1736839899934,2.6885,186.06,186.03,2.6889]
[1736839901132,3.1679,186.08,186.0,2.6892]
[1736839901133,8.01065541,186.05,186.0,2.6892]
[1736839901336,8.01065541,186.03,185.98,8.01065541]
[1736839901533,8.01065541,186.03,185.97,50.09749991]
[1736839901736,8.01065541,186.03,185.98,8.01065541]
[1736839902436,10.69955541,186.03,185.99,2.6894]
[1736839906938,2.6889,186.03,185.99,2.6894]
[1736839907244,2.6889,186.03,185.98,8.01065541]
[1736839907545,2.6889,186.03,186.0,2.6893]
[1736839907843,2.6889,186.03,186.0,10.69995541]
[1736839909045,10.69915541,186.06,186.02,2.6889]
[1736839910743,10.69915541,186.06,186.03,2.6889]
[1736839911044,3.1679,186.08,186.02,8.01065541]
[1736839911354,3.1679,186.08,185.97,50.09749991]
[1736839911665,3.1679,186.08,186.04,8.01065541]
[1736839911966,3.1679,186.08,186.05,2.6886]
[1736839915959,8.01065541,186.07,186.02,8.01065541]
[1736839916247,8.01065541,186.05,186.0,8.01065541]
[1736839916650,8.01065541,186.05,186.02,2.689]
[1736839918151,10.69925541,186.05,186.02,2.689]
[1736839920355,8.01065541,186.05,185.97,50.09749991]
[1736839920654,8.01065541,186.03,185.97,50.09749991]
[1736839920855,8.01065541,186.01,185.97,50.09749991]
[1736839921656,8.01065541,186.01,185.98,2.6896]
[1736839922455,8.01065541,186.01,185.98,2.6895]
[1736839923157,8.01065541,186.01,185.95,108.61065541]
[1736839923353,8.01065541,186.01,185.99,2.6895]
[1736839924461,8.01065541,186.01,185.95,108.61065541]
[1736839924662,8.01065541,186.01,185.98,2.6896]
[1736839926860,8.01065541,186.01,185.99,2.6895]
[1736839928464,8.01065541,186.01,185.98,2.6896]
[1736839933468,8.01065541,186.01,185.95,108.61065541]
[1736839933671,8.01065541,186.01,185.99,2.6895]
[1736839935776,10.69965541,186.03,185.99,2.6895]
[1736839936373,2.6888,186.04,186.0,2.6892]
[1736839936572,2.6888,186.04,185.99,8.01065541]
[1736839937375,2.6888,186.04,186.01,2.6891]
[1736839938080,3.1679,186.08,186.03,8.01065541]
[1736839938580,3.1679,186.08,186.04,2.6887]
[1736839938874,8.01065541,186.07,185.98,5.4]
[1736839939079,8.01065541,186.05,185.99,8.01065541]
[1736839939281,8.01065541,186.05,186.01,2.6891]
[1736839940172,2.6888,186.04,186.01,2.6891]
[1736839942076,10.69955541,186.03,186.0,2.6893]
[1736839945678,2.6886,186.06,186.01,10.69975541]
[1736839945980,3.1679,186.08,186.02,8.01065541]
[1736839946478,5.8561,186.08,186.02,8.01065541]
[1736839946980,3.1679,186.08,186.06,2.6884]
[1736839947182,3.1679,186.08,185.97,1.6002]
[1736839947183,8.01065541,186.1,186.04,8.01065541]
[1736839947372,1.6245,186.13,186.05,8.01065541]
[1736839947577,8.01065541,186.1,186.05,8.01065541]
[1736839947778,8.01065541,186.1,186.03,8.01065541]
[1736839948675,10.69855541,186.1,186.07,2.6882]
[1736839949878,8.01065541,186.08,186.05,2.6886]
[1736839950077,8.01065541,186.08,186.01,8.01065541]
[1736839950383,8.01065541,186.08,186.04,2.6886]
[1736839950384,8.01065541,186.06,186.04,2.6886]
[1736839953481,8.01065541,186.06,186.05,2.6886]
[1736839953781,1.6245,186.13,186.01,8.01065541]
[1736839953983,8.01065541,186.08,186.01,8.01065541]
[1736839954177,8.01065541,186.08,186.05,2.6885]
[1736839956381,10.69895541,186.08,186.04,2.6887]
[1736839957285,8.01065541,186.06,185.97,2.273]
[1736839957481,8.01065541,186.06,186.03,2.6888]
[1736839958486,8.01065541,186.04,186.01,2.6892]
[1736839958887,8.01065541,186.04,185.98,8.01065541]
[1736839959378,8.01065541,186.04,186.01,2.6891]
[1736839961789,8.01065541,186.02,185.94,3.68558485]
[1736839961990,8.01065541,186.0,185.98,2.6895]
[1736839963989,2.6895,185.99,185.95,2.69]
[1736839964192,8.01065541,185.98,185.95,2.69]
[1736839967491,8.01065541,185.98,185.9,100.64]
[1736839967792,8.01065541,185.94,185.9,100.64]
[1736839968193,8.01065541,185.94,185.88,8.01065541]
[1736839969787,8.01065541,185.94,185.9,8.01065541]
[1736839969993,8.01065541,185.94,185.91,2.6906]
[1736839970193,8.01065541,185.94,185.9,8.01065541]
[1736839970493,10.70055541,185.96,185.9,8.01065541]
[1736839971996,10.70055541,185.96,185.92,2.6904]
[1736839972996,8.01065541,185.96,185.92,2.6904]
[1736839978702,8.01065541,185.96,185.9,8.01065541]
[1736839978901,8.01065541,185.96,185.93,2.6903]
[1736839981201,1.6373,185.98,185.85,3.89576524]
[1736839981401,8.01065541,185.92,185.87,8.01065541]
[1736839981905,8.01065541,185.92,185.89,2.6909]
[1736839989116,2.6901,185.95,185.91,2.6906]
[1736839989315,8.01065541,185.94,185.91,2.6906]
[1736839990317,8.01065541,185.94,185.89,8.01065541]
[1736839990510,8.01065541,185.94,185.92,2.6905]
[1736839994316,8.01065541,185.94,185.91,2.6906]
[1736839994619,8.01065541,185.92,185.91,2.6906]
[1736839997317,8.01065541,185.92,185.84,53.24543062]
[1736839997625,8.01065541,185.88,185.84,53.24543062]
[1736839997814,8.01065541,185.88,185.86,2.6913]
[1736839999718,10.70175541,185.88,185.85,2.6914]
[1736839999921,8.01065541,185.86,185.85,2.6914]
[1736840001326,10.70175541,185.88,185.85,2.6914]
[1736840002426,8.01065541,185.88,185.85,2.6914]
[1736840005231,8.01065541,185.86,185.85,2.6914]
[1736840006828,8.01065541,185.86,185.84,2.6915]
[1736840007435,8.01065541,185.86,185.83,2.6917]
[1736840008537,8.01065541,185.84,185.83,2.6917]
[1736840008725,8.01065541,185.84,185.82,2.6919]
[1736840008929,8.01065541,185.84,185.8,100.66]
[1736840009232,8.01065541,185.84,185.81,2.6921]
[1736840010530,3.1238,185.91,185.75,0.6757]
[1736840010531,8.01065541,185.82,185.75,2.6928]
[1736840010728,8.01065541,185.8,185.73,8.01065541]
[1736840011233,8.01065541,185.8,185.78,2.6924]
[1736840021546,8.01065541,185.8,185.75,8.01065541]
[1736840022844,8.01065541,185.8,185.79,2.6924]
[1736840024345,1.5999,185.82,185.77,8.01065541]
[1736840024547,1.5999,185.82,185.8,2.6922]
[1736840025741,8.01065541,185.81,185.78,2.6924]
[1736840025941,8.01065541,185.79,185.78,2.6924]
[1736840026550,8.01065541,185.79,185.72,5.3866]
[1736840026750,8.01065541,185.77,185.71,61.29518031]
[1736840027249,8.01065541,185.77,185.76,2.6928]
[1736840035352,8.01065541,185.77,185.75,2.6929]
[1736840035556,8.01065541,185.76,185.75,2.6929]
[1736840037356,8.01065541,185.76,185.71,53.2845249]
[1736840037548,8.01065541,185.73,185.71,53.2845249]
[1736840037755,8.01065541,185.73,185.71,2.6934]
[1736840040955,8.01065541,185.73,185.72,2.6934]
[1736840041649,2.6927,185.77,185.73,2.6932]
[1736840041853,8.01065541,185.74,185.73,2.6932]
[1736840055978,8.01065541,185.76,185.74,2.693]
[1736840056278,191.25674682,185.91,185.72,8.01065541]
[1736840056573,8.01065541,185.78,185.72,8.01065541]
[1736840057178,8.01065541,185.78,185.77,2.6925]
[1736840065585,8.01065541,185.78,185.68,7.46957673]
[1736840065781,8.01065541,185.69,185.68,7.46957673]
[1736840066992,8.01065541,185.69,185.66,2.6942]
[1736840067190,10.70445541,185.69,185.66,2.6942]
[1736840067889,8.01065541,185.69,185.66,2.6942]
[1736840071582,8.01065541,185.69,185.65,2.6944]
[1736840073991,8.01065541,185.69,185.62,8.01065541]
[1736840074189,8.01065541,185.69,185.64,8.01065541]
[1736840074492,8.01065541,185.72,185.66,8.01065541]
[1736840074890,8.01065541,185.72,185.69,2.6937]
[1736840075485,8.01065541,185.7,185.65,8.01065541]
[1736840076792,2.6939,185.69,185.65,2.6943]
[1736840077489,8.01065541,185.68,185.65,2.6943]
[1736840082697,8.01065541,185.66,185.65,2.6943]
[1736840087198,8.01065541,185.66,185.61,1.6732]
[1736840087399,8.01065541,185.66,185.64,2.6945]
[1736840090505,8.01065541,185.66,185.6,100.78]
[1736840090707,8.01065541,185.64,185.6,100.78]
[1736840090907,8.01065541,185.64,185.62,2.6947]
[1736840096707,8.01065541,185.64,185.63,2.6947]
[1736840098608,1.6435,185.67,185.58,8.01065541]
[1736840098809,1.6435,185.67,185.64,2.6945]
[1736840099005,8.01065541,185.65,185.64,2.6945]
[1736840113020,3.3077,185.67,185.64,2.6945]
[1736840113220,8.01065541,185.65,185.64,2.6945]
[1736840113515,3.3077,185.67,185.58,8.01065541]
[1736840113721,8.01065541,185.67,185.66,2.6943]
[1736840115512,8.01065541,185.67,185.64,2.6944]
[1736840115822,8.01065541,185.65,185.64,2.6944]
[1736840120328,8.01065541,185.65,185.63,2.6947]
[1736840120626,8.01065541,185.65,185.58,8.01065541]
[1736840121528,8.01065541,185.65,185.62,2.6947]
[1736840125431,8.01065541,185.63,185.56,17.05193214]
[1736840126430,8.01065541,185.63,185.6,2.695]
[1736840126828,8.01065541,185.61,185.55,3.93810179]
[1736840127025,2.6947,185.63,185.55,3.93810179]
[1736840127227,8.01065541,185.6,185.55,3.93810179]
[1736840127427,8.01065541,185.6,185.58,2.6953]
[1736840128531,8.01065541,185.6,185.55,3.93810179]
[1736840128733,8.01065541,185.56,185.55,3.93810179]
[1736840128939,8.01065541,185.57,185.53,7.46957673]
[1736840129143,8.01065541,185.57,185.54,2.6959]
[1736840130133,10.70625541,185.57,185.5,100.84]
[1736840130438,8.01065541,185.55,185.5,108.85065541]
[1736840130935,8.01065541,185.53,185.51,2.6964]
[1736840131839,8.01065541,185.53,185.5,2.6965]
[1736840132842,8.01065541,185.51,185.41,7.46957673]
[1736840133035,8.01065541,185.47,185.41,15.48023214]
[1736840133236,8.01065541,185.47,185.41,7.46957673]
[1736840133537,3.3389,185.5,185.41,7.46957673]
[1736840133735,8.01065541,185.47,185.4,8.01065541]
[1736840133943,8.01065541,185.47,185.42,8.01065541]
[1736840134237,8.01065541,185.47,185.37,13.07392248]
[1736840134446,8.01065541,185.47,185.41,8.01065541]
[1736840134631,8.01065541,185.47,185.43,2.6976]
[1736840134832,3.3389,185.5,185.37,5.60434575]
[1736840134833,8.01065541,185.45,185.37,5.60434575]
[1736840135031,8.01065541,185.45,185.39,8.01065541]
[1736840135738,8.01065541,185.45,185.37,5.60434575]
[1736840135939,8.01065541,185.45,185.39,8.01065541]
[1736840137031,8.01065541,185.45,185.42,2.6977]
[1736840138140,8.01065541,185.46,185.44,2.6974]
[1736840139133,3.3389,185.5,185.41,8.01065541]
[1736840139441,8.01065541,185.47,185.41,8.01065541]
[1736840139944,8.01065541,185.47,185.37,5.60434575]
[1736840140243,8.01065541,185.47,185.41,8.01065541]
[1736840140643,8.01065541,185.47,185.43,2.6975]
[1736840140843,8.01065541,185.47,185.41,8.01065541]
[1736840141343,8.01065541,185.47,185.44,2.6974]
[1736840141542,8.01065541,185.47,185.41,8.01065541]
[1736840141943,8.01065541,185.47,185.46,2.6971]
[1736840142345,8.01065541,185.47,185.37,5.60434575]
[1736840142545,8.01065541,185.45,185.39,8.01065541]
[1736840143040,8.01065541,185.45,185.42,2.6977]
[1736840143436,8.01065541,185.45,185.39,8.01065541]
[1736840143742,8.01065541,185.43,185.37,13.61500116]
[1736840143942,8.01065541,185.43,185.39,8.01065541]
[1736840144145,8.01065541,185.43,185.41,2.6978]
[1736840145749,8.01065541,185.43,185.39,2.6981]
[1736840147251,8.01065541,185.43,185.38,8.01065541]
[1736840147452,8.01065541,185.43,185.4,2.698]
[1736840148544,8.01065541,185.43,185.38,8.01065541]
[1736840148749,8.01065541,185.43,185.41,2.6979]
[1736840152552,8.01065541,185.43,185.42,2.6977]
[1736840152746,8.01065541,185.45,185.42,2.6977]
[1736840152946,4.2324,185.49,185.42,8.01065541]
[1736840153248,8.01065541,185.47,185.45,2.6973]
[1736840153449,1.5356,185.49,185.42,8.01065541]
[1736840153646,8.01065541,185.47,185.42,8.01065541]
[1736840154451,8.01065541,185.47,185.46,2.6972]
[1736840157255,8.01065541,185.47,185.42,8.01065541]
[1736840157552,8.01065541,185.47,185.45,2.6973]
[1736840157756,8.01065541,185.47,185.34,5.3978]
[1736840157946,8.01065541,185.43,185.38,8.01065541]
[1736840158752,8.01065541,185.43,185.41,2.6978]
[1736840160459,8.01065541,185.43,185.4,2.698]
[1736840160954,8.01065541,185.43,185.41,2.6979]
[1736840161258,8.01065541,185.45,185.38,8.01065541]
[1736840161759,8.01065541,185.45,185.41,2.6978]
[1736840162059,8.01065541,185.45,185.4,8.01065541]
[1736840162255,8.01065541,185.47,185.4,8.01065541]
[1736840162463,10.70775541,185.47,185.42,2.6976]
[1736840162761,10.70775541,185.47,185.4,8.01065541]
[1736840163758,10.70775541,185.47,185.43,2.6976]
[1736840164755,8.01065541,185.47,185.4,8.01065541]
[1736840164962,2.6969,185.48,185.45,2.6972]
[1736840165162,10.70755541,185.48,185.45,2.6972]
[1736840167162,10.70755541,185.48,185.42,8.01065541]
[1736840167363,3.3389,185.5,185.48,2.6967]
[1736840167854,1.674,185.5,185.48,2.6967]
[1736840168260,1.674,185.5,185.49,2.6967]
[1736840168762,8.01065541,185.51,185.49,2.6967]
[1736840169554,1.5544,185.55,185.48,8.01065541]
[1736840169760,8.01065541,185.54,185.48,8.01065541]
[1736840171059,1.701,185.56,185.48,8.01065541]
[1736840171366,1.701,185.56,185.5,8.01065541]
[1736840171367,8.01065541,185.55,185.5,8.01065541]
[1736840171567,8.01065541,185.53,185.46,8.01065541]
[1736840171764,8.01065541,185.51,185.48,2.6969]